[Event "Titled Tuesday Blitz December 27 Late 2022"]
[White "Holt, Conrad"]
[Black "Melkumyan, Hrant"]
[WhiteFideId "2034387"]
[BlackFideId "13302485"]
[WhiteElo "2540"]
[BlackElo "2645"]
[Result "1-0"]
[Round "08"]
[TimeControl "180+2"]
[Date "2022.12.27"]
[WhiteClock "0:00:38"]
[BlackClock "0:00:05"]

1. d4 {[%clk 0:03:00]}  Nf6 {[%clk 0:03:00]} 2. c4 {[%clk 0:03:01]}  g6 {[%clk 0:03:00]} 3. Nc3 {[%clk 0:03:00]}  Bg7 {[%clk 0:03:01]} 4. e4 {[%clk 0:03:00]}  d6 {[%clk 0:03:01]} 5. Nf3 {[%clk 0:03:01]}  O-O {[%clk 0:03:01]} 6. h3 {[%clk 0:03:01]}  c5 {[%clk 0:02:52]} 7. d5 {[%clk 0:03:01]}  e6 {[%clk 0:02:52]} 8. Bd3 {[%clk 0:03:01]}  exd5 {[%clk 0:02:50]} 9. cxd5 {[%clk 0:03:01]}  b6 {[%clk 0:02:38]} 10. O-O {[%clk 0:03:00]}  Ba6 {[%clk 0:02:38]} 11. Bf4 {[%clk 0:02:59]}  Bxd3 {[%clk 0:02:17]} 12. Qxd3 {[%clk 0:02:58]}  a6 {[%clk 0:02:18]} 13. a4 {[%clk 0:02:57]}  Ra7 {[%clk 0:02:18]} 14. Rfe1 {[%clk 0:02:55]}  Re7 {[%clk 0:02:16]} 15. Nd2 {[%clk 0:02:50]}  Ne8 {[%clk 0:02:08]} 16. Nc4 {[%clk 0:02:47]}  f6 {[%clk 0:01:47]} 17. Qg3 {[%clk 0:02:42]}  Rd7 {[%clk 0:01:40]} 18. h4 {[%clk 0:02:40]}  Qe7 {[%clk 0:01:16]} 19. Nxb6 {[%clk 0:02:38]}  Rd8 {[%clk 0:01:07]} 20. Nc4 {[%clk 0:02:37]}  Rf7 {[%clk 0:01:07]} 21. Ra3 {[%clk 0:02:31]}  Bf8 {[%clk 0:00:58]} 22. Rb3 {[%clk 0:02:29]}  Qc7 {[%clk 0:00:57]} 23. a5 {[%clk 0:02:20]}  Nd7 {[%clk 0:00:50]} 24. h5 {[%clk 0:02:19]}  g5 {[%clk 0:00:34]} 25. Na4 {[%clk 0:02:18]}  h6 {[%clk 0:00:28]} 26. Bd2 {[%clk 0:02:14]}  Ng7 {[%clk 0:00:23]} 27. Qh3 {[%clk 0:02:14]}  f5 {[%clk 0:00:21]} 28. exf5 {[%clk 0:02:11]}  Nxf5 {[%clk 0:00:22]} 29. Nab6 {[%clk 0:02:04]}  Nd4 {[%clk 0:00:19]} 30. Rd3 {[%clk 0:02:01]}  Nf6 {[%clk 0:00:19]} 31. Bc3 {[%clk 0:01:58]}  Kg7 {[%clk 0:00:19]} 32. Bxd4 {[%clk 0:01:55]}  cxd4 {[%clk 0:00:20]} 33. Rxd4 {[%clk 0:01:55]}  Kg8 {[%clk 0:00:20]} 34. Rd3 {[%clk 0:01:54]}  Bg7 {[%clk 0:00:20]} 35. Rde3 {[%clk 0:01:51]}  Rdf8 {[%clk 0:00:19]} 36. Qe6 {[%clk 0:01:50]}  Nxh5 {[%clk 0:00:17]} 37. g3 {[%clk 0:01:30]}  Kh8 {[%clk 0:00:17]} 38. R1e2 {[%clk 0:01:12]}  Rf6 {[%clk 0:00:15]} 39. Qg4 {[%clk 0:01:06]}  Qf7 {[%clk 0:00:15]} 40. Re7 {[%clk 0:01:06]}  Qg6 {[%clk 0:00:13]} 41. R7e6 {[%clk 0:01:05]}  Qb1+ {[%clk 0:00:10]} 42. Kg2 {[%clk 0:01:05]}  Nf4+ {[%clk 0:00:09]} 43. gxf4 {[%clk 0:01:04]}  Rxf4 {[%clk 0:00:09]} 44. Qg3 {[%clk 0:00:54]}  Rh4 {[%clk 0:00:09]} 45. Re1 {[%clk 0:00:54]}  Qf5 {[%clk 0:00:09]} 46. Nxd6 {[%clk 0:00:50]}  Qc2 {[%clk 0:00:07]} 47. Re8 {[%clk 0:00:48]}  Rxe8 {[%clk 0:00:04]} 48. Rxe8+ {[%clk 0:00:46]}  Kh7 {[%clk 0:00:05]} 49. Re7 {[%clk 0:00:40]}  h5 {[%clk 0:00:05]} 50. Rxg7+ {[%clk 0:00:38]} 1-0


[Site "https://www.chess.com"]

[Event "Titled Tuesday Blitz December 27 Late 2022"]
[White "Joubert, Dantelle"]
[Black "Jenkins, Drake"]
[WhiteFideId "14310813"]
[BlackFideId "2022397"]
[WhiteElo "1566"]
[BlackElo "2130"]
[Result "0-1"]
[Round "08"]
[TimeControl "180+2"]
[Date "2022.12.27"]
[WhiteClock "0:00:02"]
[BlackClock "0:00:36"]

1. d4 {[%clk 0:03:00]}  Nf6 {[%clk 0:02:59]} 2. c4 {[%clk 0:02:56]}  c5 {[%clk 0:03:00]} 3. d5 {[%clk 0:02:55]}  b5 {[%clk 0:03:00]} 4. cxb5 {[%clk 0:02:55]}  a6 {[%clk 0:03:01]} 5. bxa6 {[%clk 0:02:54]}  Bxa6 {[%clk 0:03:01]} 6. Nc3 {[%clk 0:02:48]}  g6 {[%clk 0:03:02]} 7. e4 {[%clk 0:02:48]}  Bxf1 {[%clk 0:03:02]} 8. Kxf1 {[%clk 0:02:49]}  d6 {[%clk 0:03:02]} 9. g3 {[%clk 0:02:49]}  Bg7 {[%clk 0:03:02]} 10. Kg2 {[%clk 0:02:44]}  O-O {[%clk 0:03:03]} 11. Nf3 {[%clk 0:02:43]}  Na6 {[%clk 0:03:03]} 12. Re1 {[%clk 0:02:03]}  Nd7 {[%clk 0:03:01]} 13. a4 {[%clk 0:01:47]}  Nb4 {[%clk 0:02:58]} 14. Ra3 {[%clk 0:01:36]}  Qc7 {[%clk 0:02:54]} 15. Nb5 {[%clk 0:01:32]}  Qb7 {[%clk 0:02:54]} 16. b3 {[%clk 0:01:31]}  Rfc8 {[%clk 0:02:50]} 17. Nd2 {[%clk 0:01:27]}  Nd3 {[%clk 0:02:48]} 18. Re3 {[%clk 0:01:22]}  Nxc1 {[%clk 0:02:46]} 19. Qxc1 {[%clk 0:01:22]}  Bh6 {[%clk 0:02:36]} 20. f4 {[%clk 0:01:21]}  Rf8 {[%clk 0:02:19]} 21. Nc4 {[%clk 0:01:10]}  f5 {[%clk 0:02:19]} 22. Qc2 {[%clk 0:01:03]}  Nf6 {[%clk 0:02:16]} 23. exf5 {[%clk 0:01:00]}  Nxd5 {[%clk 0:02:06]} 24. Rf3 {[%clk 0:00:44]}  Rxf5 {[%clk 0:02:02]} 25. Qe4 {[%clk 0:00:43]}  Rb8 {[%clk 0:01:46]} 26. Ne3 {[%clk 0:00:39]}  Nxe3+ {[%clk 0:01:17]} 27. Rxe3 {[%clk 0:00:33]}  Bf8 {[%clk 0:01:01]} 28. Qxb7 {[%clk 0:00:29]}  Rxb7 {[%clk 0:01:02]} 29. Nc3 {[%clk 0:00:19]}  d5 {[%clk 0:00:59]} 30. Re5 {[%clk 0:00:13]}  Rxe5 {[%clk 0:00:53]} 31. fxe5 {[%clk 0:00:13]}  e6 {[%clk 0:00:54]} 32. Nb5 {[%clk 0:00:11]}  c4 {[%clk 0:00:52]} 33. bxc4 {[%clk 0:00:11]}  Bxa3 {[%clk 0:00:50]} 34. Nxa3 {[%clk 0:00:11]}  Ra7 {[%clk 0:00:46]} 35. cxd5 {[%clk 0:00:10]}  Rxa4 {[%clk 0:00:45]} 36. Nb5 {[%clk 0:00:10]}  exd5 {[%clk 0:00:44]} 37. e6 {[%clk 0:00:08]}  Kf8 {[%clk 0:00:42]} 38. Nc7 {[%clk 0:00:06]}  d4 {[%clk 0:00:40]} 39. Nd5 {[%clk 0:00:05]}  d3 {[%clk 0:00:39]} 40. Kf2 {[%clk 0:00:04]}  Re4 {[%clk 0:00:38]} 41. e7+ {[%clk 0:00:02]}  Kf7 {[%clk 0:00:36]} 0-1


[Site "https://www.chess.com"]

[Event "Titled Tuesday Blitz December 27 Late 2022"]
[White "Kazakouski, Valery"]
[Black "Babazada, Khazar"]
[WhiteFideId "13507443"]
[BlackFideId "13413554"]
[WhiteElo "2539"]
[BlackElo "2474"]
[Result "1-0"]
[Round "08"]
[TimeControl "180+2"]
[Date "2022.12.27"]
[WhiteClock "0:00:03"]
[BlackClock "0:00:02"]

1. Nf3 {[%clk 0:03:00]}  Nf6 {[%clk 0:03:00]} 2. c4 {[%clk 0:03:01]}  c5 {[%clk 0:02:59]} 3. b3 {[%clk 0:03:01]}  Nc6 {[%clk 0:02:59]} 4. Bb2 {[%clk 0:03:01]}  e6 {[%clk 0:02:58]} 5. g3 {[%clk 0:03:01]}  Be7 {[%clk 0:02:56]} 6. Bg2 {[%clk 0:03:01]}  O-O {[%clk 0:02:56]} 7. O-O {[%clk 0:03:02]}  d5 {[%clk 0:02:54]} 8. e3 {[%clk 0:03:02]}  d4 {[%clk 0:02:52]} 9. exd4 {[%clk 0:03:03]}  cxd4 {[%clk 0:02:52]} 10. Re1 {[%clk 0:03:04]}  a5 {[%clk 0:02:44]} 11. Na3 {[%clk 0:03:04]}  Nd7 {[%clk 0:02:39]} 12. Nb5 {[%clk 0:02:57]}  e5 {[%clk 0:02:39]} 13. d3 {[%clk 0:02:58]}  f6 {[%clk 0:02:39]} 14. a3 {[%clk 0:02:55]}  Kh8 {[%clk 0:02:31]} 15. Nd2 {[%clk 0:02:52]}  Nc5 {[%clk 0:02:25]} 16. Qc2 {[%clk 0:02:52]}  Bf5 {[%clk 0:02:16]} 17. Ne4 {[%clk 0:02:52]}  Ne6 {[%clk 0:02:14]} 18. Bc1 {[%clk 0:02:42]}  Bg6 {[%clk 0:02:14]} 19. f4 {[%clk 0:02:21]}  Qb8 {[%clk 0:01:57]} 20. fxe5 {[%clk 0:02:12]}  Nxe5 {[%clk 0:01:58]} 21. Bb2 {[%clk 0:02:04]}  Ra6 {[%clk 0:01:57]} 22. Kh1 {[%clk 0:01:50]}  Rd8 {[%clk 0:01:53]} 23. Nf2 {[%clk 0:01:43]}  Bc5 {[%clk 0:01:39]} 24. Rf1 {[%clk 0:01:40]}  Ng5 {[%clk 0:01:38]} 25. Rae1 {[%clk 0:01:37]}  Ngf3 {[%clk 0:01:36]} 26. Re2 {[%clk 0:01:37]}  Re8 {[%clk 0:01:25]} 27. Ne4 {[%clk 0:01:31]}  Bxe4 {[%clk 0:01:21]} 28. Rxe4 {[%clk 0:01:32]}  Ng5 {[%clk 0:01:22]} 29. Re2 {[%clk 0:01:32]}  Ne6 {[%clk 0:01:11]} 30. b4 {[%clk 0:01:24]}  axb4 {[%clk 0:01:09]} 31. axb4 {[%clk 0:01:25]}  Bxb4 {[%clk 0:01:10]} 32. Nxd4 {[%clk 0:01:25]}  Nc5 {[%clk 0:01:04]} 33. Rd1 {[%clk 0:01:02]}  Ra2 {[%clk 0:00:57]} 34. Qb1 {[%clk 0:00:55]}  Qa8 {[%clk 0:00:29]} 35. Nb5 {[%clk 0:00:29]}  Rd8 {[%clk 0:00:24]} 36. d4 {[%clk 0:00:25]}  Nxc4 {[%clk 0:00:24]} 37. dxc5 {[%clk 0:00:21]}  Rxd1+ {[%clk 0:00:25]} 38. Qxd1 {[%clk 0:00:21]}  Nxb2 {[%clk 0:00:25]} 39. Qf1 {[%clk 0:00:14]}  Ra1 {[%clk 0:00:24]} 40. Re8+ {[%clk 0:00:12]}  Qxe8 {[%clk 0:00:22]} 41. Qxa1 {[%clk 0:00:13]}  Nd3 {[%clk 0:00:11]} 42. Nd6 {[%clk 0:00:14]}  Qb8 {[%clk 0:00:08]} 43. Qd4 {[%clk 0:00:11]}  Bxc5 {[%clk 0:00:04]} 44. Nf7+ {[%clk 0:00:11]}  Kg8 {[%clk 0:00:05]} 45. Qxd3 {[%clk 0:00:12]}  Qe8 {[%clk 0:00:03]} 46. Bd5 {[%clk 0:00:09]}  Qe1+ {[%clk 0:00:02]} 47. Kg2 {[%clk 0:00:10]}  Kf8 {[%clk 0:00:03]} 48. Qc4 {[%clk 0:00:08]}  Qf2+ {[%clk 0:00:03]} 49. Kh3 {[%clk 0:00:09]}  h5 {[%clk 0:00:03]} 50. Be6 {[%clk 0:00:04]}  g5 {[%clk 0:00:02]} 51. Nh6 {[%clk 0:00:03]} 1-0


[Site "https://www.chess.com"]

[Event "Titled Tuesday Blitz December 27 Late 2022"]
[White "Lorenzo De La Riva, Lazaro"]
[Black "Ronka, Erik"]
[WhiteFideId "2268809"]
[BlackFideId "505080"]
[WhiteElo "2404"]
[BlackElo "2276"]
[Result "0-1"]
[Round "08"]
[TimeControl "180+2"]
[Date "2022.12.27"]
[WhiteClock "0:00:02"]
[BlackClock "0:00:10"]

1. b3 {[%clk 0:01:47]}  g6 {[%clk 0:03:00]} 2. Bb2 {[%clk 0:01:46]}  Nf6 {[%clk 0:02:55]} 3. Bxf6 {[%clk 0:01:46]}  exf6 {[%clk 0:02:56]} 4. c4 {[%clk 0:01:45]}  d5 {[%clk 0:02:56]} 5. cxd5 {[%clk 0:01:45]}  Qxd5 {[%clk 0:02:56]} 6. Nc3 {[%clk 0:01:45]}  Qa5 {[%clk 0:02:51]} 7. e3 {[%clk 0:01:41]}  c5 {[%clk 0:02:49]} 8. Bb5+ {[%clk 0:01:36]}  Bd7 {[%clk 0:02:48]} 9. Bxd7+ {[%clk 0:01:35]}  Nxd7 {[%clk 0:02:49]} 10. Nf3 {[%clk 0:01:33]}  Bg7 {[%clk 0:02:49]} 11. O-O {[%clk 0:01:33]}  O-O {[%clk 0:02:49]} 12. Qc2 {[%clk 0:01:30]}  f5 {[%clk 0:02:47]} 13. Rac1 {[%clk 0:01:26]}  Rad8 {[%clk 0:02:16]} 14. Rfd1 {[%clk 0:01:17]}  Ne5 {[%clk 0:01:59]} 15. Nxe5 {[%clk 0:01:15]}  Bxe5 {[%clk 0:02:00]} 16. Ne2 {[%clk 0:01:12]}  b6 {[%clk 0:01:58]} 17. g3 {[%clk 0:01:08]}  Rd7 {[%clk 0:01:52]} 18. d3 {[%clk 0:00:58]}  Rfd8 {[%clk 0:01:52]} 19. Rd2 {[%clk 0:00:57]}  Qb5 {[%clk 0:01:48]} 20. Rcd1 {[%clk 0:00:57]}  Qa6 {[%clk 0:01:35]} 21. a4 {[%clk 0:00:54]}  Qb7 {[%clk 0:01:34]} 22. Qc4 {[%clk 0:00:49]}  Qf3 {[%clk 0:01:30]} 23. b4 {[%clk 0:00:37]}  h5 {[%clk 0:01:22]} 24. bxc5 {[%clk 0:00:31]}  bxc5 {[%clk 0:01:23]} 25. h4 {[%clk 0:00:28]}  Rd5 {[%clk 0:00:53]} 26. a5 {[%clk 0:00:24]}  Bc7 {[%clk 0:00:44]} 27. a6 {[%clk 0:00:22]}  Ba5 {[%clk 0:00:41]} 28. Ra2 {[%clk 0:00:19]}  Bb6 {[%clk 0:00:42]} 29. Rad2 {[%clk 0:00:16]}  Ba5 {[%clk 0:00:40]} 30. Ra2 {[%clk 0:00:16]}  Bb4 {[%clk 0:00:40]} 31. Rc2 {[%clk 0:00:14]}  Kh7 {[%clk 0:00:37]} 32. Kf1 {[%clk 0:00:12]}  f6 {[%clk 0:00:31]} 33. Rcc1 {[%clk 0:00:10]}  g5 {[%clk 0:00:31]} 34. hxg5 {[%clk 0:00:09]}  fxg5 {[%clk 0:00:32]} 35. Ng1 {[%clk 0:00:07]}  Qh1 {[%clk 0:00:30]} 36. Ke2 {[%clk 0:00:06]}  f4 {[%clk 0:00:28]} 37. Nf3 {[%clk 0:00:06]}  Qg2 {[%clk 0:00:29]} 38. gxf4 {[%clk 0:00:06]}  g4 {[%clk 0:00:28]} 39. Qe4+ {[%clk 0:00:03]}  Kg7 {[%clk 0:00:26]} 40. Qe7+ {[%clk 0:00:03]}  Kh6 {[%clk 0:00:26]} 41. Ne5 {[%clk 0:00:03]}  Rxe5 {[%clk 0:00:18]} 42. Qf6+ {[%clk 0:00:04]}  Kh7 {[%clk 0:00:17]} 43. fxe5 {[%clk 0:00:04]}  Rg8 {[%clk 0:00:17]} 44. Qf5+ {[%clk 0:00:04]}  Kh6 {[%clk 0:00:15]} 45. Rg1 {[%clk 0:00:04]}  Qc6 {[%clk 0:00:15]} 46. Rh1 {[%clk 0:00:03]}  Rg5 {[%clk 0:00:13]} 47. Qf8+ {[%clk 0:00:04]}  Kh7 {[%clk 0:00:12]} 48. Qf6 {[%clk 0:00:02]}  Qxa6 {[%clk 0:00:10]} 0-1


[Site "https://www.chess.com"]

[Event "Titled Tuesday Blitz December 27 Late 2022"]
[White "Marjanovic, Annamaria"]
[Black "Kobo, Ori"]
[WhiteFideId "750930"]
[BlackFideId "2812320"]
[WhiteElo "2273"]
[BlackElo "2559"]
[Result "1-0"]
[Round "08"]
[TimeControl "180+2"]
[Date "2022.12.27"]
[WhiteClock "0:00:19"]
[BlackClock "0:00:07"]

1. c4 {[%clk 0:02:55]}  Nf6 {[%clk 0:02:57]} 2. g3 {[%clk 0:02:56]}  g6 {[%clk 0:02:55]} 3. Bg2 {[%clk 0:02:56]}  Bg7 {[%clk 0:02:55]} 4. Nc3 {[%clk 0:02:57]}  d6 {[%clk 0:02:55]} 5. d3 {[%clk 0:02:58]}  O-O {[%clk 0:02:53]} 6. Rb1 {[%clk 0:02:56]}  a5 {[%clk 0:02:52]} 7. a3 {[%clk 0:02:56]}  e5 {[%clk 0:02:37]} 8. b4 {[%clk 0:02:54]}  axb4 {[%clk 0:02:38]} 9. axb4 {[%clk 0:02:55]}  Nc6 {[%clk 0:02:39]} 10. Nf3 {[%clk 0:02:54]}  Bf5 {[%clk 0:02:36]} 11. b5 {[%clk 0:02:52]}  Nd4 {[%clk 0:02:22]} 12. Nxd4 {[%clk 0:02:50]}  exd4 {[%clk 0:02:23]} 13. Nd5 {[%clk 0:02:50]}  Nxd5 {[%clk 0:02:22]} 14. Bxd5 {[%clk 0:02:49]}  Qc8 {[%clk 0:02:17]} 15. O-O {[%clk 0:02:46]}  c6 {[%clk 0:02:13]} 16. bxc6 {[%clk 0:02:41]}  bxc6 {[%clk 0:02:14]} 17. Bg2 {[%clk 0:02:41]}  Re8 {[%clk 0:02:11]} 18. Bf4 {[%clk 0:02:38]}  Be5 {[%clk 0:01:51]} 19. Bxe5 {[%clk 0:02:29]}  Rxe5 {[%clk 0:01:49]} 20. Rb6 {[%clk 0:02:20]}  Ra6 {[%clk 0:01:44]} 21. Rxa6 {[%clk 0:02:01]}  Qxa6 {[%clk 0:01:45]} 22. Qd2 {[%clk 0:02:00]}  Kg7 {[%clk 0:01:36]} 23. Qb2 {[%clk 0:01:58]}  c5 {[%clk 0:01:32]} 24. e4 {[%clk 0:01:39]}  dxe3 {[%clk 0:01:01]} 25. f4 {[%clk 0:01:38]}  Bxd3 {[%clk 0:00:52]} 26. Re1 {[%clk 0:01:14]}  Qxc4 {[%clk 0:00:24]} 27. fxe5 {[%clk 0:01:11]}  d5 {[%clk 0:00:25]} 28. e6+ {[%clk 0:01:07]}  d4 {[%clk 0:00:25]} 29. Rxe3 {[%clk 0:00:56]}  fxe6 {[%clk 0:00:19]} 30. Qb7+ {[%clk 0:00:51]}  Kh6 {[%clk 0:00:18]} 31. Re1 {[%clk 0:00:47]}  Bf5 {[%clk 0:00:16]} 32. Qf3 {[%clk 0:00:40]}  d3 {[%clk 0:00:14]} 33. Qe3+ {[%clk 0:00:35]}  Kg7 {[%clk 0:00:14]} 34. Rc1 {[%clk 0:00:31]}  Qd4 {[%clk 0:00:12]} 35. Qxd4+ {[%clk 0:00:26]}  cxd4 {[%clk 0:00:13]} 36. Rd1 {[%clk 0:00:19]}  e5 {[%clk 0:00:13]} 37. g4 {[%clk 0:00:19]}  e4 {[%clk 0:00:09]} 38. gxf5 {[%clk 0:00:18]}  gxf5 {[%clk 0:00:10]} 39. Bf1 {[%clk 0:00:17]}  Kf6 {[%clk 0:00:08]} 40. Bxd3 {[%clk 0:00:17]}  exd3 {[%clk 0:00:09]} 41. Rxd3 {[%clk 0:00:17]}  Ke5 {[%clk 0:00:10]} 42. Kf2 {[%clk 0:00:18]}  Ke4 {[%clk 0:00:10]} 43. Rd1 {[%clk 0:00:18]}  f4 {[%clk 0:00:11]} 44. Ke2 {[%clk 0:00:17]}  f3+ {[%clk 0:00:11]} 45. Kf2 {[%clk 0:00:17]}  d3 {[%clk 0:00:11]} 46. Rd2 {[%clk 0:00:17]}  h5 {[%clk 0:00:11]} 47. Rd1 {[%clk 0:00:18]}  h4 {[%clk 0:00:11]} 48. Rd2 {[%clk 0:00:18]}  h3 {[%clk 0:00:10]} 49. Rd1 {[%clk 0:00:18]}  Kd4 {[%clk 0:00:07]} 50. Kxf3 {[%clk 0:00:19]}  Kc3 {[%clk 0:00:07]} 51. Ke3 {[%clk 0:00:19]} 1-0


[Site "https://www.chess.com"]

[Event "Titled Tuesday Blitz December 27 Late 2022"]
[White "Martinez Ramirez, Lennis"]
[Black "Pakleza, Zbigniew"]
[WhiteFideId "3509079"]
[BlackFideId "1119290"]
[WhiteElo "2426"]
[BlackElo "2494"]
[Result "0-1"]
[Round "08"]
[TimeControl "180+2"]
[Date "2022.12.27"]
[WhiteClock "0:00:02"]
[BlackClock "0:00:20"]

1. c4 {[%clk 0:03:00]}  c6 {[%clk 0:02:57]} 2. d4 {[%clk 0:03:00]}  d5 {[%clk 0:02:57]} 3. Nf3 {[%clk 0:03:01]}  Nf6 {[%clk 0:02:57]} 4. e3 {[%clk 0:03:01]}  Bf5 {[%clk 0:02:57]} 5. Qb3 {[%clk 0:03:01]}  Qb6 {[%clk 0:02:56]} 6. Nc3 {[%clk 0:03:01]}  e6 {[%clk 0:02:56]} 7. c5 {[%clk 0:03:00]}  Qc7 {[%clk 0:02:55]} 8. Bd2 {[%clk 0:02:59]}  h6 {[%clk 0:02:55]} 9. Rc1 {[%clk 0:02:58]}  Nbd7 {[%clk 0:02:55]} 10. Qa4 {[%clk 0:02:49]}  Be7 {[%clk 0:02:50]} 11. b4 {[%clk 0:02:49]}  O-O {[%clk 0:02:50]} 12. Be2 {[%clk 0:02:48]}  a6 {[%clk 0:02:50]} 13. h3 {[%clk 0:02:48]}  Ne4 {[%clk 0:02:50]} 14. Nxe4 {[%clk 0:02:47]}  Bxe4 {[%clk 0:02:51]} 15. O-O {[%clk 0:02:45]}  Bf6 {[%clk 0:02:44]} 16. Bc3 {[%clk 0:02:45]}  Rfe8 {[%clk 0:02:43]} 17. Qd1 {[%clk 0:02:44]}  e5 {[%clk 0:02:41]} 18. Nd2 {[%clk 0:02:31]}  Bg6 {[%clk 0:02:32]} 19. Bh5 {[%clk 0:02:14]}  Bh7 {[%clk 0:02:10]} 20. Re1 {[%clk 0:02:00]}  exd4 {[%clk 0:02:07]} 21. Bxd4 {[%clk 0:02:00]}  Ne5 {[%clk 0:01:41]} 22. Be2 {[%clk 0:01:59]}  Re6 {[%clk 0:01:36]} 23. Nf3 {[%clk 0:01:58]}  Rae8 {[%clk 0:01:32]} 24. a4 {[%clk 0:01:48]}  Be4 {[%clk 0:01:28]} 25. Nxe5 {[%clk 0:01:45]}  Bxe5 {[%clk 0:01:29]} 26. Bxe5 {[%clk 0:01:44]}  Qxe5 {[%clk 0:01:29]} 27. Bf3 {[%clk 0:01:44]}  Rg6 {[%clk 0:01:26]} 28. Kh1 {[%clk 0:01:30]}  Qf5 {[%clk 0:01:19]} 29. Rg1 {[%clk 0:01:20]}  Rf6 {[%clk 0:01:09]} 30. b5 {[%clk 0:00:54]}  Bxf3 {[%clk 0:01:07]} 31. Qxf3 {[%clk 0:00:54]}  Qxf3 {[%clk 0:01:02]} 32. gxf3 {[%clk 0:00:54]}  Rxf3 {[%clk 0:00:58]} 33. Kg2 {[%clk 0:00:55]}  Rf6 {[%clk 0:00:58]} 34. bxc6 {[%clk 0:00:55]}  bxc6 {[%clk 0:00:58]} 35. Rb1 {[%clk 0:00:55]}  Re4 {[%clk 0:00:58]} 36. Rb8+ {[%clk 0:00:53]}  Kh7 {[%clk 0:00:58]} 37. Ra1 {[%clk 0:00:52]}  Rc4 {[%clk 0:00:57]} 38. Rb6 {[%clk 0:00:50]}  a5 {[%clk 0:00:55]} 39. Ra2 {[%clk 0:00:41]}  Rxc5 {[%clk 0:00:54]} 40. Ra6 {[%clk 0:00:41]}  Kg6 {[%clk 0:00:53]} 41. Rb2 {[%clk 0:00:40]}  h5 {[%clk 0:00:51]} 42. h4 {[%clk 0:00:38]}  Kf5 {[%clk 0:00:43]} 43. Rb7 {[%clk 0:00:24]}  Kg4 {[%clk 0:00:39]} 44. Rb2 {[%clk 0:00:10]}  Kxh4 {[%clk 0:00:37]} 45. Ra7 {[%clk 0:00:08]}  Kg5 {[%clk 0:00:35]} 46. f4+ {[%clk 0:00:08]}  Kf5 {[%clk 0:00:33]} 47. Kf3 {[%clk 0:00:09]}  Ke6 {[%clk 0:00:26]} 48. Rg2 {[%clk 0:00:09]}  g6 {[%clk 0:00:25]} 49. Rg5 {[%clk 0:00:09]}  Kd6 {[%clk 0:00:23]} 50. Re5 {[%clk 0:00:09]}  Re6 {[%clk 0:00:23]} 51. Rxf7 {[%clk 0:00:04]}  Rxe5 {[%clk 0:00:22]} 52. fxe5+ {[%clk 0:00:05]}  Kxe5 {[%clk 0:00:23]} 53. Rg7 {[%clk 0:00:06]}  Kf6 {[%clk 0:00:22]} 54. Ra7 {[%clk 0:00:06]}  g5 {[%clk 0:00:22]} 55. Rh7 {[%clk 0:00:06]}  h4 {[%clk 0:00:22]} 56. Rc7 {[%clk 0:00:06]}  Rc4 {[%clk 0:00:21]} 57. Rc8 {[%clk 0:00:02]}  g4+ {[%clk 0:00:20]} 58. Kf2 {[%clk 0:00:02]}  Ke5 {[%clk 0:00:21]} 59. Re8+ {[%clk 0:00:02]}  Kd6 {[%clk 0:00:21]} 60. Ke2 {[%clk 0:00:02]}  Rxa4 {[%clk 0:00:21]} 61. Rh8 {[%clk 0:00:02]}  h3 {[%clk 0:00:21]} 62. Kf2 {[%clk 0:00:02]}  Re4 {[%clk 0:00:21]} 63. Kg3 {[%clk 0:00:02]}  a4 {[%clk 0:00:20]} 0-1


[Site "https://www.chess.com"]

[Event "Titled Tuesday Blitz December 27 Late 2022"]
[White "Mekhitarian, Krikor Sevag"]
[Black "Sargsyan, Anna M."]
[WhiteFideId "2107660"]
[BlackFideId "13308130"]
[WhiteElo "2537"]
[BlackElo "2375"]
[Result "1-0"]
[Round "08"]
[TimeControl "180+2"]
[Date "2022.12.27"]
[WhiteClock "0:00:21"]
[BlackClock "0:00:05"]

1. Nf3 {[%clk 0:03:00]}  d5 {[%clk 0:02:58]} 2. c4 {[%clk 0:03:00]}  d4 {[%clk 0:02:58]} 3. b4 {[%clk 0:03:00]}  g5 {[%clk 0:02:58]} 4. h3 {[%clk 0:03:00]}  Bg7 {[%clk 0:02:57]} 5. d3 {[%clk 0:02:58]}  h6 {[%clk 0:02:56]} 6. g3 {[%clk 0:02:59]}  e5 {[%clk 0:02:56]} 7. Bg2 {[%clk 0:02:58]}  f5 {[%clk 0:02:57]} 8. O-O {[%clk 0:02:58]}  Ne7 {[%clk 0:02:57]} 9. a4 {[%clk 0:02:59]}  O-O {[%clk 0:02:57]} 10. a5 {[%clk 0:02:59]}  a6 {[%clk 0:02:51]} 11. Nbd2 {[%clk 0:02:54]}  c6 {[%clk 0:02:49]} 12. Nb3 {[%clk 0:02:45]}  Nd7 {[%clk 0:02:43]} 13. Bb2 {[%clk 0:02:42]}  Ng6 {[%clk 0:02:41]} 14. Qc2 {[%clk 0:02:39]}  Qe7 {[%clk 0:02:40]} 15. Rfe1 {[%clk 0:02:34]}  Qf7 {[%clk 0:02:35]} 16. e3 {[%clk 0:02:23]}  dxe3 {[%clk 0:02:32]} 17. Rxe3 {[%clk 0:02:24]}  f4 {[%clk 0:02:29]} 18. Ree1 {[%clk 0:02:23]}  fxg3 {[%clk 0:02:15]} 19. fxg3 {[%clk 0:02:23]}  Re8 {[%clk 0:02:16]} 20. Rf1 {[%clk 0:02:19]}  Qe7 {[%clk 0:02:13]} 21. Rae1 {[%clk 0:02:19]}  Qxb4 {[%clk 0:02:09]} 22. Kh2 {[%clk 0:02:19]}  Ndf8 {[%clk 0:02:08]} 23. Bc3 {[%clk 0:02:09]}  Qd6 {[%clk 0:02:05]} 24. Nbd2 {[%clk 0:02:03]}  Bf5 {[%clk 0:01:53]} 25. Ne4 {[%clk 0:02:03]}  Bxe4 {[%clk 0:01:53]} 26. Rxe4 {[%clk 0:01:51]}  Rad8 {[%clk 0:01:54]} 27. Re3 {[%clk 0:01:38]}  Ne6 {[%clk 0:01:45]} 28. Nd2 {[%clk 0:01:37]}  Nd4 {[%clk 0:01:44]} 29. Qb2 {[%clk 0:01:33]}  Qd7 {[%clk 0:01:31]} 30. Ne4 {[%clk 0:01:26]}  Rf8 {[%clk 0:01:31]} 31. Ree1 {[%clk 0:01:25]}  Qc7 {[%clk 0:01:20]} 32. Nc5 {[%clk 0:01:11]}  Rxf1 {[%clk 0:01:01]} 33. Rxf1 {[%clk 0:01:10]}  Rb8 {[%clk 0:00:55]} 34. Rb1 {[%clk 0:00:45]}  Qf7 {[%clk 0:00:39]} 35. Nxa6 {[%clk 0:00:41]}  Ra8 {[%clk 0:00:29]} 36. Nc5 {[%clk 0:00:41]}  Re8 {[%clk 0:00:10]} 37. Qxb7 {[%clk 0:00:29]}  Qf2 {[%clk 0:00:09]} 38. Rf1 {[%clk 0:00:29]}  Nf3+ {[%clk 0:00:04]} 39. Kh1 {[%clk 0:00:29]}  Qxg3 {[%clk 0:00:04]} 40. Rxf3 {[%clk 0:00:27]}  Qh4 {[%clk 0:00:04]} 41. Qf7+ {[%clk 0:00:26]}  Kh7 {[%clk 0:00:04]} 42. Qxe8 {[%clk 0:00:26]}  Nf4 {[%clk 0:00:05]} 43. Qf7 {[%clk 0:00:21]} 1-0


[Site "https://www.chess.com"]